bitfinex/quotes_SOLUSD_20260119
["timestamp","ask_amount","ask_price","bid_price","bid_amount"]
[1768829125553,7.47328301,133.81,133.78,4.849827]
[1768829125863,9.31269876,133.81,133.78,4.849827]
[1768829127467,1.83941575,133.8,133.77,4.849827]
[1768829127659,9.31358996,133.8,133.77,1.84286397]
[1768829127964,1.83941575,133.79,133.76,4.849827]
[1768829128167,1.83941575,133.79,133.75,1.84286397]
[1768829128469,1.83941575,133.78,133.74,1.84286397]
[1768829128655,1.83941575,133.77,133.73,1.84286397]
[1768829129673,9.31542513,133.77,133.73,1.84286397]
[1768829133671,12.32238816,133.77,133.73,1.84286397]
[1768829135772,1.83941575,133.76,133.73,1.84286397]
[1768829135979,1.77941575,133.76,133.73,1.84286397]
[1768829136467,7.47600938,133.77,133.73,1.84286397]
[1768829138281,1.83941575,133.77,133.73,1.84286397]
[1768829139481,9.31542949,133.77,133.73,1.84286397]
[1768829139684,12.32239252,133.77,133.73,1.84286397]
[1768829140179,12.26239252,133.77,133.74,1.87047467]
[1768829140777,9.25542949,133.77,133.74,1.87047467]
[1768829141480,12.26239252,133.77,133.74,1.87047467]
[1768829141683,9.25542949,133.77,133.74,1.87047467]
[1768829141882,12.26239252,133.77,133.74,1.87047467]
[1768829143984,9.25542949,133.77,133.74,1.87047467]
[1768829144186,12.26239252,133.77,133.74,1.87047467]
[1768829144767,9.25542949,133.77,133.74,1.87047467]
[1768829144973,12.26239252,133.77,133.74,1.87047467]
[1768829146484,9.25542949,133.77,133.74,1.87047467]
[1768829146691,12.26239252,133.77,133.74,1.87047467]
[1768829147363,1.92306785,133.75,133.72,1.87047467]
[1768829148168,1.92306785,133.76,133.73,1.87047467]
[1768829149290,9.39928637,133.76,133.73,1.87047467]
[1768829150784,7.47621852,133.76,133.73,1.87047467]
[1768829150976,9.39928637,133.76,133.73,1.87047467]
[1768829154693,9.39928637,133.76,133.73,4.8774377]
[1768829155082,105.0340588,133.79,133.75,1.93955889]
[1768829155394,1.9340588,133.79,133.75,4.94652192]
[1768829156491,9.40894858,133.79,133.75,4.94652192]
[1768829157994,9.40894858,133.79,133.75,1.93955889]
[1768829158191,9.40894858,133.79,133.76,1.93955889]
[1768829158390,9.40894858,133.79,133.76,4.94652192]
[1768829158703,1.9340588,133.78,133.71,1.93955889]
[1768829158874,42.54089022,133.79,133.72,2.08172046]
[1768829158875,1.9340588,133.76,133.72,2.08172046]
[1768829159074,1.9340588,133.75,133.72,1.93955889]
[1768829162300,9.41087784,133.75,133.72,1.93955889]
[1768829168088,9.41020952,133.76,133.72,1.93955889]
[1768829168392,9.41020952,133.76,133.73,1.93955889]
[1768829170004,9.41020952,133.76,133.73,4.94670824]
[1768829170379,9.41020952,133.76,133.73,1.93955889]
[1768829177434,53.75200089,133.79,133.76,1.93955889]
[1768829177435,1.9340588,133.79,133.76,1.93955889]
[1768829177621,9.40845897,133.79,133.77,1.93955889]
[1768829177819,7.47440017,133.79,133.77,1.93955889]
[1768829178130,9.40734181,133.81,133.78,1.93955889]
[1768829179016,9.40734181,133.81,133.77,4.94670824]
[1768829179017,1.9340588,133.8,133.77,4.94670824]
[1768829179211,1.9340588,133.8,133.77,1.93955889]
[1768829182414,9.40838154,133.8,133.77,1.93955889]
[1768829185154,9.40838154,133.8,133.77,4.94670824]
[1768829185324,7.47432274,133.8,133.78,1.92690198]
[1768829189854,1.98927676,133.79,133.74,0.14216157]
[1768829190026,1.98927676,133.79,133.75,3.00714935]
[1768829190748,1.98927676,133.78,133.74,3.00714935]
[1768829191547,1.98927676,133.77,133.73,10.4848945]
[1768829191845,1.98927676,133.77,133.74,1.92690198]
[1768829192523,1.98927676,133.77,133.7,5.34408856]
[1768829192524,1.98927676,133.76,133.72,4.93405133]
[1768829193437,1.98927676,133.76,133.72,1.92690198]
[1768829193746,1.98927676,133.75,133.72,1.92690198]
[1768829194156,7.47719455,133.74,133.71,1.92690198]
[1768829194337,9.46647131,133.74,133.71,1.92690198]
[1768829196551,1.98927676,133.73,133.7,4.93405133]
[1768829199930,1.98927676,133.73,133.71,3.00714935]
[1768829200357,9.44695322,133.74,133.71,4.80948363]
[1768829202143,9.44695322,133.74,133.71,1.80233428]
[1768829213152,12.42889544,133.74,133.71,1.80233428]
[1768829213351,9.42174609,133.74,133.71,1.80233428]
[1768829214567,1.94455154,133.73,133.71,1.80233428]
[1768829216158,9.42231682,133.73,133.71,1.80233428]
[1768829231365,1.94455154,133.72,133.7,1.85801484]
[1768829232078,9.42231682,133.73,133.7,1.85801484]
[1768829232566,28.11670102,133.73,133.7,1.85801484]
[1768829235574,9.42231682,133.73,133.7,1.85801484]
[1768829249203,1.78181269,133.72,133.7,1.85801484]
[1768829251405,1.78181269,133.72,133.69,1.90487]
[1768829252080,1.78181269,133.71,133.68,1.90487]
[1768829252283,1.68459268,133.71,133.68,1.90487]
[1768829253790,1.68459268,133.71,133.68,9.38542037]
[1768829254118,7.47847166,133.72,133.69,1.90487]
[1768829254296,9.26028435,133.72,133.69,1.90487]
[1768829255100,1.78181269,133.71,133.69,1.90487]
[1768829260392,1.79987275,133.72,133.69,1.90487]
[1768829260596,1.79987275,133.72,133.69,4.9128567]
[1768829260796,1.79987275,133.72,133.69,1.90487]
[1768829263315,1.79987275,133.71,133.69,1.90487]
[1768829263618,1.73987276,133.71,133.69,1.90487]
[1768829264522,7.47855201,133.72,133.69,1.90487]
[1768829265325,7.47775368,133.73,133.69,1.90487]
[1768829265622,1.79987275,133.72,133.69,1.90487]
[1768829268106,9.278423,133.72,133.69,1.90487]
[1768829272831,1.8873097,133.71,133.68,4.84599034]
[1768829276058,9.36619443,133.71,133.68,1.83800364]
[1768829277268,1.8873097,133.7,133.68,1.83800364]
[1768829277641,1.8873097,133.71,133.68,1.83800364]
[1768829279462,9.36630541,133.71,133.68,1.83800364]
[1768829282464,9.36630541,133.71,133.69,1.83800364]
[1768829284870,9.36630541,133.71,133.68,1.83800364]
[1768829285370,1.8873097,133.7,133.65,1.83800364]
[1768829285549,1.8873097,133.7,133.65,4.84599034]
[1768829285749,1.8873097,133.7,133.66,1.83800364]
[1768829286854,9.36726986,133.7,133.66,1.83800364]
[1768829288055,9.36726986,133.7,133.66,4.8476463]
[1768829288568,9.36726986,133.7,133.66,1.83800364]
[1768829288866,9.36726986,133.7,133.66,4.8476463]
[1768829291073,9.36726986,133.7,133.67,1.83800364]
[1768829295074,7.47996016,133.7,133.68,1.83800364]
[1768829295274,7.47996016,133.7,133.69,1.83800364]
[1768829295576,7.41996012,133.7,133.69,1.83800364]
[1768829297357,7.41996012,133.7,133.67,3.00964266]
[1768829299569,7.41996012,133.7,133.68,1.83800364]
[1768829304196,1.79658988,133.7,133.67,1.86395397]
[1768829304480,1.79658988,133.7,133.66,4.87359663]
[1768829305280,7.47999102,133.69,133.66,4.87359663]
[1768829305483,9.2765809,133.69,133.66,4.87359663]
[1768829305985,9.21658089,133.69,133.66,4.87359663]
[1768829307775,9.21658089,133.69,133.66,1.86395397]
[1768829307975,9.21658089,133.69,133.66,4.87359663]
[1768829312578,9.15658088,133.69,133.66,4.87359663]
[1768829315495,9.15658088,133.69,133.66,1.86395397]
[1768829319704,1.70876308,133.68,133.66,1.86395397]
[1768829320511,1.70876308,133.69,133.66,1.86395397]
[1768829320695,1.70876308,133.69,133.65,3.00964266]
[1768829321198,1.70876308,133.69,133.66,1.77403402]
[1768829324808,9.1889561,133.69,133.66,1.77403402]
[1768829330134,1.70876308,133.68,133.65,3.00964266]
[1768829330325,1.70876308,133.68,133.65,4.78367668]
[1768829330634,1.70876308,133.68,133.65,1.77403402]
[1768829330839,1.70876308,133.68,133.65,4.78367668]
[1768829331436,1.70876308,133.68,133.65,1.77403402]
[1768829331637,1.70876308,133.68,133.65,4.78367668]
[1768829331824,1.70876308,133.67,133.64,1.77403402]
[1768829332721,1.64876304,133.67,133.64,1.77403402]
[1768829333939,7.48158873,133.67,133.63,4.80858109]
[1768829334842,9.28353006,133.67,133.63,4.80858109]
[1768829335023,1.80194133,133.66,133.63,4.80858109]
[1768829336031,1.80194133,133.66,133.63,1.79893843]
[1768829336232,1.80194133,133.66,133.63,4.80858109]
[1768829337743,1.80194133,133.66,133.64,4.80858109]
[1768829338339,1.80194133,133.66,133.64,1.79893843]
[1768829338649,1.80194133,133.66,133.64,4.80858109]
[1768829339546,1.74194129,133.66,133.64,4.80858109]
[1768829339845,1.74194129,133.66,133.64,1.79893843]
[1768829342246,7.48055056,133.68,133.64,1.79893843]
[1768829343248,29.19156964,133.68,133.64,1.79893843]
[1768829343443,29.19156964,133.68,133.63,4.80858109]
[1768829344226,9.28348438,133.67,133.63,4.80858109]
[1768829345346,9.28348438,133.67,133.64,1.79893843]
[1768829348452,1.80194133,133.67,133.64,4.80858109]
[1768829348946,1.80194133,133.67,133.64,4.80918818]
[1768829348947,9.28307473,133.67,133.64,4.80918818]
[1768829349151,9.28277592,133.68,133.65,1.79893843]
[1768829351856,1.80194133,133.67,133.65,1.79893843]
[1768829356360,9.2831794,133.67,133.65,1.79893843]
[1768829357435,1.80194133,133.66,133.62,1.79893843]
[1768829357661,1.80194133,133.65,133.62,1.79893843]
[1768829358539,9.28430105,133.65,133.62,1.79893843]
[1768829359059,9.28398265,133.66,133.62,1.79893843]
[1768829359267,9.28398265,133.66,133.63,1.79893843]
[1768829364245,1.77225974,133.65,133.62,1.82072142]
[1768829365467,1.77225974,133.64,133.62,1.82072142]
[1768829365644,1.66462519,133.64,133.62,1.82072142]
[1768829366270,1.66462519,133.64,133.6,12.31555189]
[1768829366656,1.66462519,133.64,133.61,1.82072142]
[1768829367859,1.6046252,133.64,133.61,1.82072142]
[1768829368268,1.6046252,133.64,133.61,4.83097117]
[1768829370977,9.25417032,133.66,133.63,1.82072142]
[1768829371278,7.48191058,133.66,133.64,1.82072142]
[1768829371857,1.77225974,133.68,133.65,1.82072142]
[1768829373572,9.25296674,133.68,133.65,1.82072142]
[1768829377789,1.77225974,133.67,133.64,1.82072142]
[1768829377980,1.77225974,133.66,133.63,1.82072142]
[1768829382191,9.25404258,133.66,133.63,1.82072142]
[1768829385277,12.27110997,133.68,133.64,1.77888465]
[1768829385478,9.26086022,133.68,133.64,1.77888465]
[1768829385878,1.78017501,133.67,133.64,1.77888465]
[1768829386891,9.26139079,133.67,133.64,1.77888465]
[1768829388593,9.26095379,133.68,133.64,1.77888465]
[1768829389979,21.7106043,133.69,133.64,1.77888465]
[1768829389980,9.26142149,133.67,133.64,1.77888465]
[1768829391098,7.48061804,133.68,133.65,1.77888465]
[1768829391495,9.26079305,133.68,133.65,1.77888465]
[1768829393699,9.26079305,133.68,133.65,4.7891344]
[1768829401111,9.26079305,133.68,133.65,1.77888465]
[1768829402104,112.3113864,133.7,133.67,4.72129076]
[1768829402312,112.3113864,133.7,133.67,4.69129076]
[1768829402313,9.2113864,133.7,133.67,4.69129076]
[1768829403904,9.2113864,133.7,133.67,1.68104101]
[1768829404088,9.2113864,133.7,133.67,4.69129076]
[1768829407015,9.2113864,133.7,133.67,1.68104101]
[1768829411413,9.2113864,133.7,133.68,3.00918178]
[1768829411721,9.2113864,133.7,133.67,4.69022279]
[1768829411904,9.2113864,133.7,133.67,1.68104101]
[1768829412110,9.2113864,133.7,133.67,4.69022279]
[1768829416123,9.2113864,133.7,133.67,1.68104101]
[1768829416320,7.47831289,133.72,133.69,4.72022279]
[1768829416512,7.47831289,133.72,133.7,3.00918178]
[1768829416705,7.47831289,133.72,133.7,4.72022279]
[1768829417120,7.47831289,133.72,133.66,7.48145364]
[1768829417320,1.73173147,133.71,133.65,1.71104101]
[1768829417522,1.73173147,133.7,133.66,1.71104101]
[1768829418726,7.47999102,133.69,133.66,1.71104101]
[1768829418926,9.21172249,133.69,133.66,1.71104101]
[1768829420725,1.73173147,133.68,133.65,1.71104101]
[1768829422428,1.73173147,133.67,133.64,1.71104101]
[1768829424932,7.48123507,133.67,133.63,1.82201219]
[1768829425230,1.79306793,133.66,133.63,1.82201219]
[1768829425610,1.73306794,133.66,133.63,1.82201219]
[1768829426016,1e-08,133.66,133.63,1.82201219]
[1768829426546,1e-08,133.66,133.64,1.82201219]
[1768829430937,9.33384072,133.68,133.65,1.82201219]
[1768829431123,1.85306792,133.68,133.65,1.82201219]
[1768829432157,9.33365879,133.68,133.65,1.82201219]
[1768829437842,9.33329974,133.69,133.66,1.82201219]
[1768829438960,1.85306792,133.68,133.66,1.82201219]
[1768829439166,1.79306788,133.68,133.66,1.82201219]
[1768829439459,1.73306787,133.68,133.66,1.82201219]
[1768829445389,1.6730678,133.68,133.66,1.82201219]
[1768829445583,7.48023182,133.69,133.66,1.82201219]
[1768829446401,18.69958395,133.7,133.66,1.82201219]
[1768829446700,21.70876573,133.7,133.66,1.82201219]
[1768829447284,18.69958395,133.7,133.66,1.82201219]
[1768829447585,1.83160868,133.69,133.66,1.82201219]
[1768829448887,9.3121584,133.69,133.66,1.82201219]
[1768829450490,31.02131774,133.69,133.66,1.82201219]
[1768829451190,28.01213596,133.69,133.66,1.82201219]
[1768829451377,31.02131774,133.69,133.66,1.82201219]
[1768829453469,1.8016064,133.68,133.65,1.68576074]
[1768829454889,7.48111019,133.67,133.65,1.68576074]
[1768829457391,23.51076574,133.69,133.65,1.68576074]
[1768829457392,27.98353338,133.68,133.65,1.68576074]
[1768829458892,27.92353337,133.68,133.66,1.68576074]
[1768829461100,27.92353337,133.68,133.62,10.49282738]
[1768829463175,27.92353337,133.68,133.63,3.00918178]
[1768829463375,27.92353337,133.68,133.64,1.68576074]
[1768829467900,7.48055056,133.68,133.64,1.68576074]
[1768829468203,7.48055056,133.68,133.65,1.68576074]
[1768829469802,7.48055056,133.68,133.66,1.68576074]
[1768829472295,7.4205504,133.68,133.66,1.68576074]
[1768829472602,7.36055033,133.68,133.66,1.68576074]
[1768829478809,7.30055029,133.68,133.66,1.68576074]
[1768829479811,1.8016064,133.71,133.65,1.68576074]
[1768829479990,9.28047858,133.71,133.69,1.68576074]
[1768829480309,1.8016064,133.71,133.69,1.68576074]
[1768829481406,9.28047937,133.71,133.69,1.68576074]
[1768829481996,1.8016064,133.7,133.67,1.68576074]
[1768829482300,1.8016064,133.7,133.67,4.69557061]
[1768829482509,1.8016064,133.7,133.68,1.68576074]
[1768829482700,7.47887297,133.71,133.68,1.68576074]
[1768829482701,9.28733343,133.71,133.68,1.68576074]
[1768829482893,9.28733343,133.71,133.68,4.69557061]
[1768829485216,1.80846046,133.71,133.69,1.6598427]
[1768829485614,7.47855726,133.72,133.69,1.6598427]
[1768829485615,1.80846046,133.72,133.69,1.6598427]
[1768829487715,9.28701795,133.72,133.69,1.6598427]
[1768829487898,9.28701795,133.72,133.7,1.6598427]
[1768829487899,7.47855749,133.72,133.7,1.6598427]
[1768829488100,9.28701795,133.72,133.69,3.00980987]
[1768829488304,9.28701795,133.72,133.69,4.66965257]
[1768829490101,9.28701795,133.72,133.69,1.6598427]
[1768829490308,8.78701795,133.72,133.69,1.6598427]
[1768829491224,1.80846046,133.71,133.68,4.66965257]
[1768829491802,1.80846046,133.71,133.67,1.6598427]
[1768829492119,1.80846046,133.7,133.66,1.6598427]
[1768829492301,1.80846046,133.68,133.64,1.6598427]
[1768829493613,1.74846046,133.68,133.64,1.6598427]
[1768829494019,7.4807087,133.68,133.64,1.6598427]
[1768829494221,3.00980987,133.69,133.64,1.6598427]
[1768829494523,18.69903765,133.7,133.64,1.6598427]
[1768829494711,3.00980987,133.69,133.64,1.6598427]
[1768829495301,10.48980089,133.69,133.64,1.6598427]
[1768829495526,7.47999102,133.69,133.64,12.15239355]
[1768829495827,1.80846046,133.68,133.64,12.15239355]
[1768829496426,9.28904812,133.68,133.64,12.15239355]
[1768829496929,1.80846046,133.67,133.64,12.15239355]
[1768829497325,1.80846046,133.68,133.65,1.6598427]
[1768829497505,9.28903601,133.68,133.65,1.6598427]
[1768829498119,1.80846046,133.68,133.65,1.6598427]
[1768829500829,9.24838199,133.7,133.66,1.79420033]
[1768829501127,1.76858608,133.71,133.68,1.79420033]
[1768829501627,9.24753734,133.71,133.68,1.79420033]
[1768829505638,9.24753734,133.71,133.68,4.8040102]
[1768829508837,9.24753734,133.71,133.68,1.79420033]
[1768829509026,9.24753734,133.71,133.68,4.8040102]
[1768829511545,9.24753734,133.71,133.68,1.79420033]
[1768829512426,9.24753734,133.71,133.68,4.8040102]
[1768829514455,1.79559191,133.7,133.68,1.79420033]
[1768829514841,1.79559191,133.7,133.67,1.72889397]
[1768829515354,1.79559191,133.7,133.66,1.72889397]
[1768829516554,1.79559191,133.69,133.66,1.72889397]
[1768829520231,1.79559191,133.69,133.66,4.73870384]
[1768829520959,1.79559191,133.69,133.66,1.72889397]
[1768829521168,1.79559191,133.69,133.66,4.73870384]
[1768829523263,1.79559191,133.69,133.66,1.72889397]
[1768829523463,1.79559191,133.69,133.66,4.73870384]
[1768829523842,1.79559191,133.69,133.66,1.72889397]
[1768829524339,1.79559191,133.69,133.67,4.73870384]
[1768829524542,1.79559191,133.7,133.68,1.72889397]
[1768829525449,1.73559191,133.7,133.68,1.72889397]
[1768829525846,7.47847317,133.72,133.69,1.72889397]
[1768829527657,1.79559191,133.71,133.69,1.72889397]
[1768829528765,1.79559191,133.71,133.67,12.21955075]
[1768829528766,7.47899526,133.71,133.67,12.21955075]
[1768829529750,7.47853278,133.72,133.67,12.21955075]
[1768829530165,10.48834265,133.72,133.67,1.72889397]
[1768829530344,10.48834265,133.72,133.66,4.73870384]
[1768829530544,29.18412488,133.72,133.66,4.73870384]
[1768829530847,1.79559191,133.71,133.66,4.7382311]
[1768829532369,1.79559191,133.7,133.67,1.72889397]
[1768829532744,1.79559191,133.7,133.67,4.7382311]
[1768829533064,1.79559191,133.7,133.68,1.72889397]
[1768829533265,1.79559191,133.71,133.69,1.72889397]
[1768829533447,1.79559191,133.71,133.69,4.7382311]
[1768829533647,1.79559191,133.71,133.69,1.72889397]
[1768829536885,9.27479537,133.71,133.69,1.72889397]
[1768829537064,9.27479537,133.71,133.68,4.7382311]
[1768829537865,9.27479537,133.71,133.69,1.72889397]
[1768829538166,9.27419062,133.72,133.69,4.7382311]
[1768829538566,9.27419062,133.72,133.7,1.72889397]
[1768829538866,9.27419062,133.72,133.69,1.72889397]
[1768829539067,9.27419062,133.72,133.69,4.7382311]
[1768829541242,9.27416738,133.72,133.69,4.7382311]
[1768829541761,9.27416738,133.72,133.69,1.72889397]
[1768829541951,1.79559191,133.71,133.69,1.72889397]
[1768829543568,9.27461882,133.71,133.68,4.75887099]
[1768829544871,1.79559191,133.71,133.69,1.74953386]
[1768829545971,1.79559191,133.71,133.68,3.00933713]
[1768829546155,1.71002662,133.7,133.68,3.00933713]
[1768829546354,1.71002662,133.7,133.67,4.75887099]
[1768829546550,4.71936375,133.7,133.65,64.34953386]
[1768829546853,1.71002662,133.68,133.66,1.74953386]
[1768829552380,1.65002662,133.68,133.66,1.74953386]
[1768829558477,1.71002662,133.69,133.66,1.74953386]
[1768829560183,9.19006731,133.69,133.66,1.74953386]
[1768829561683,1.71002662,133.69,133.66,4.75887099]
[1768829562386,1.61895585,133.68,133.65,1.73061994]
[1768829562592,1.61895585,133.68,133.65,4.73995707]
[1768829563885,1.61895585,133.68,133.65,1.73061994]
[1768829564090,1.61895585,133.68,133.65,4.73995707]
[1768829564489,1.61895585,133.68,133.65,12.2221776]
[1768829565690,1.61895585,133.68,133.65,9.21284047]
[1768829565891,1.61895585,133.68,133.65,12.2221776]
[1768829566094,1.61895585,133.68,133.66,1.73061994]
[1768829572099,1.61895585,133.69,133.66,4.73995707]
[1768829572280,1.61895585,133.69,133.66,1.73061994]
[1768829573502,9.09901788,133.69,133.66,1.73061994]
[1768829574604,1.69323181,133.68,133.66,1.73061994]
[1768829576606,9.17266337,133.7,133.67,1.64690761]
[1768829577117,1.69323181,133.69,133.67,1.64690761]
[1768829580706,1.69323181,133.69,133.65,12.13825375]
[1768829581084,1.69323181,133.69,133.66,1.64690761]
[1768829582312,1.69323181,133.69,133.66,4.65624474]
[1768829583010,1.69323181,133.69,133.66,1.64690761]
[1768829583413,1.69323181,133.69,133.66,4.65624474]
[1768829583583,9.17266337,133.7,133.67,1.64690761]
[1768829586309,7.47943156,133.7,133.67,1.64690761]
[1768829586516,1.69323181,133.69,133.67,1.64690761]
[1768829587009,9.17266337,133.7,133.67,1.64690761]
[1768829587608,1.69323181,133.69,133.67,1.64690761]
[1768829588791,1.69323181,133.7,133.67,1.64690761]
[1768829589813,7.47986955,133.7,133.67,1.64690761]
[1768829589998,9.17310136,133.7,133.67,1.64690761]
[1768829591801,1.69323181,133.69,133.65,4.65629515]
[1768829592007,1.69323181,133.69,133.66,1.64690761]
[1768829593323,9.1732518,133.69,133.66,1.64690761]
[1768829593696,1.69323181,133.68,133.66,1.64690761]
[1768829594204,9.1732518,133.69,133.66,1.64690761]
[1768829594906,1.69323181,133.68,133.65,1.64690761]
[1768829595807,9.17382454,133.68,133.65,1.64690761]
[1768829597918,1.69323181,133.68,133.65,1.64690761]
[1768829598120,9.17350687,133.69,133.66,1.64690761]
[1768829599217,1.69323181,133.68,133.66,1.64690761]
[1768829600020,9.17407027,133.68,133.65,4.65629515]
[1768829603523,9.11407027,133.68,133.65,4.65629515]
[1768829605816,9.11407027,133.68,133.65,1.64690761]
[1768829614341,9.11407027,133.68,133.66,1.66479907]
[1768829623936,9.11407027,133.68,133.64,1.66323008]
[1768829624137,9.11407027,133.68,133.65,1.66323008]
[1768829639656,9.11407027,133.68,133.65,4.67261762]
[1768829640462,9.11407027,133.68,133.65,1.66323008]
[1768829640762,9.11407027,133.68,133.65,4.67261762]
[1768829643866,9.11407027,133.68,133.65,1.66323008]
[1768829644066,9.11407027,133.68,133.65,4.67261762]
[1768829646069,27.86932541,133.69,133.66,1.68851955]
[1768829646454,27.86932541,133.69,133.66,4.69790709]
[1768829646656,7.47999102,133.69,133.68,1.68851955]
[1768829647343,7.47999102,133.69,133.67,4.69790709]
[1768829647871,7.47999102,133.69,133.67,1.68851955]
[1768829648064,7.47999102,133.69,133.67,4.69790709]
[1768829649567,7.47999102,133.69,133.67,1.68851955]
[1768829649748,7.47999102,133.69,133.67,4.69790709]
[1768829650576,1.68894663,133.71,133.68,4.69790709]
[1768829650945,9.16810518,133.71,133.68,4.69686161]
[1768829652965,7.47915855,133.71,133.69,1.68851955]
[1768829653163,7.47915855,133.71,133.69,4.69686161]
[1768829653568,9.16810518,133.71,133.69,4.69686161]
[1768829653873,9.16810518,133.71,133.69,1.68851955]
[1768829654075,9.16810518,133.71,133.69,4.69686161]
[1768829654259,9.16810518,133.71,133.69,1.68851955]
[1768829654571,9.16810518,133.71,133.68,4.69686161]
[1768829657173,9.1674631,133.72,133.69,4.69686161]
[1768829657872,1.68894663,133.71,133.69,4.69686161]
[1768829664170,7.4787673,133.72,133.7,4.76873174]
[1768829664497,9.21782874,133.72,133.7,3.00834206]
[1768829664675,7.4787673,133.72,133.69,3.00834206]
[1768829664882,1.73906144,133.71,133.68,3.00834206]
[1768829665671,1.73906144,133.71,133.69,3.00834206]
[1768829667383,1.73906144,133.7,133.67,1.76038968]
[1768829667588,1.73906144,133.69,133.66,4.76873174]
[1768829670676,1.73906144,133.69,133.66,1.76038968]
[1768829670880,1.73906144,133.69,133.66,4.76873174]
[1768829673187,1.73906144,133.69,133.67,3.00834206]
[1768829677398,1.73906144,133.69,133.65,9.24240427]
[1768829677583,1.73906144,133.69,133.66,3.00834206]
[1768829677891,1.73906144,133.69,133.66,4.76873174]
[1768829678468,1.73906144,133.69,133.66,12.25039758]
[1768829682190,1.73906144,133.69,133.66,9.24205552]
[1768829682497,1.70875255,133.68,133.66,4.76873174]
[1768829688202,1.70875255,133.69,133.66,4.76873174]
[1768829689602,9.18883374,133.69,133.66,1.76038968]
[1768829692208,9.18883374,133.69,133.66,4.76873174]
[1768829694491,1.70875255,133.69,133.67,3.00834206]
[1768829694690,1.70875255,133.69,133.67,4.62019819]
[1768829695490,1.64020471,133.71,133.67,4.62019819]
[1768829696506,7.47939069,133.71,133.67,4.62019819]
[1768829696707,1.64020471,133.7,133.67,4.62019819]
[1768829697016,1.64020471,133.7,133.68,1.61185613]
[1768829697692,9.11972811,133.7,133.67,4.62019819]
[1768829700911,7.47899646,133.71,133.68,1.61185613]
[1768829701210,7.47899646,133.71,133.69,1.61185613]
[1768829701413,7.47899646,133.71,133.69,1.58185614]
[1768829702500,9.11810946,133.73,133.69,10.48829858]
[1768829702699,9.11810946,133.73,133.7,3.00834206]
[1768829702895,1.64020471,133.75,133.71,3.00834206]
[1768829703403,1.64020471,133.75,133.72,1.61185613]
[1768829703925,1.64020471,133.75,133.71,3.00834206]
[1768829703926,7.47685647,133.75,133.73,4.62019819]
[1768829706001,7.47685647,133.75,133.73,1.61185613]
[1768829706204,7.47685647,133.75,133.73,4.62019819]
[1768829709208,7.47619423,133.76,133.74,1.61185613]
[1768829709901,1.64020471,133.77,133.74,4.62019819]
[1768829710124,1.64020471,133.78,133.75,4.62019819]
[1768829710502,9.11524198,133.78,133.75,4.62019819]
[1768829711015,7.47448692,133.79,133.76,4.62019819]
[1768829711515,7.47408364,133.8,133.76,4.62019819]
[1768829711701,7.47408364,133.8,133.76,1.61185613]
[1768829712122,7.47408364,133.8,133.76,4.62019819]
[1768829712418,7.47408364,133.8,133.76,1.61185613]
[1768829712618,7.47408364,133.8,133.76,4.62019819]
[1768829713028,0.37890801,133.79,133.76,4.61675814]
[1768829715729,7.85336029,133.79,133.76,4.61675814]
[1768829717121,7.85336029,133.79,133.76,1.61185613]
[1768829717322,7.85348789,133.79,133.76,4.61675814]
[1768829717807,7.85348789,133.79,133.76,4.58675815]
[1768829718030,7.88230252,133.8,133.77,3.00490201]
[1768829718235,7.98195088,133.81,133.79,3.00490201]
[1768829720734,0.50819441,133.81,133.79,3.00490201]
[1768829721026,0.1,133.83,133.81,1.61185613]
[1768829721222,0.1,133.83,133.81,4.61675814]
[1768829723717,0.1,133.83,133.78,7.47495888]
[1768829723918,1.78942314,133.83,133.8,3.00490201]
[1768829724317,1.78942314,133.83,133.8,1.11648035]
[1768829724724,1.78942314,133.83,133.77,18.68821081]
[1768829725018,1.78942314,133.83,133.77,21.69311282]
[1768829725222,1.78942314,133.83,133.8,3.00490201]
[1768829725432,1.78942314,133.83,133.8,1e-08]
[1768829725930,1.78942314,133.83,133.8,1.60969598]
[1768829726130,0.1,133.83,133.78,7.47495888]
[1768829726312,0.1,133.83,133.8,3.00490201]
[1768829726518,0.1,133.83,133.8,0.72510315]
[1768829726724,1.78942314,133.83,133.8,3.00490201]
[1768829726908,1.78942314,133.83,133.8,1.332e-05]
[1768829728332,1.78942314,133.83,133.8,1.60970929]
[1768829728534,1.78942314,133.83,133.8,4e-07]
[1768829729026,0.1,133.83,133.8,4e-07]
[1768829729219,1.78942314,133.83,133.79,3.00490201]
[1768829729620,1.78942314,133.83,133.78,7.47495888]
[1768829729934,1.78942314,133.83,133.79,3.00490201]
[1768829730110,1.78942314,133.83,133.79,2.97490201]
[1768829730405,1.78942314,133.83,133.79,10.44921475]
[1768829730610,1.78942314,133.83,133.8,1.60969597]
[1768829734233,1.78942314,133.83,133.8,1.57969597]
[1768829735233,1.68942314,133.82,133.76,0.14216157]
[1768829735426,1.68942314,133.8,133.76,3.00490201]
[1768829736235,1.68942314,133.8,133.76,4.61459798]
[1768829736447,1.68942314,133.79,133.76,1.60969597]
[1768829736924,3.00490201,133.8,133.76,1.60969597]
[1768829738337,7.47440017,133.79,133.73,62.74216157]
[1768829738537,7.47440017,133.79,133.73,1.74000168]
[1768829738725,3.00490201,133.78,133.73,3.00490201]
[1768829738929,4.6595086,133.78,133.74,1.74000168]
[1768829739327,1.65460659,133.78,133.75,1.74000168]